{"text_format":"1","workbook":"xlsx","n_sheets":6,"sheets":["Year 1","Year 2","Year 3","Year 4","Year 5","5 Year Total"],"not_rendered":{"charts":0,"images":0,"macros":0,"external_links":0,"defined_names":6,"comments":0,"pivot_tables":0},"unopened":[],"bounds":{"document_bytes":16777216,"sheet_cells":100000,"rows_first":2000,"rows_last":500,"rows_between":2000,"halvings":0,"cell_chars":16384,"cell_head_chars":4096},"cells_cut":0,"cells_raw":0,"read":"whole","date_system":"1900"}

{"sheet":"Year 1","index":0,"n_rows":27,"n_cols":20,"rows_kept":27,"cut":false,"hidden":false,"merged":[[17,1,17,19],[0,0,0,19],[1,0,1,19],[14,0,14,18],[15,0,15,19],[16,0,16,19],[24,17,24,19],[18,1,18,19],[19,1,19,19],[20,1,20,19],[21,1,21,19],[22,1,22,19],[23,0,23,19],[24,0,24,2],[24,3,24,6],[24,7,24,9],[24,10,24,14],[24,15,24,16],[28,0,28,19],[25,0,25,2],[25,3,25,6],[25,7,25,8],[25,10,25,11],[25,13,25,14],[25,16,25,17],[26,0,26,2],[26,3,26,6],[26,7,26,8],[26,9,26,19],[27,0,27,19]]}
["ATTACHMENT 4\nBID SCHEDULE"]
["YEAR 1"]
["Item","Site","Location","Container Size","Qty","Scheduled Pick Up Frequency","Monthly Rental                                        Cost per Container and Security Bar (Note B)                                ","Nunber of Months Container Rented Per Year ","Total Yearly Rental Cost (Sum of Column G x H)","Price Per Pick Up                           per Container (Note A)","Estimated Number of Pick Ups Per Year","Total Yearly Cost for Pick Ups (Sum of Columns J x K)","Approximate Date In (Note C)","Container Delivery Fee (Note D)","Approximate Date Out (Note C)","Container Removal Fee (Note E)","Price Per Extra Pick Up\n(Cost Per Pick Up) (Note F)","Approximate Extra Pick Up Dates","Total Cost for 2 Extra Pick Ups per year (Sum Column Q x 2)","Total Cost per Year (Sum of Columns I +  L +  N +  P + S)"]
["1.","Finger Lake Office Headquarters","7278 E. Bogard Rd. Wasilla","4 YD",1,"November 1 - April 17:  Monthly    \nApril 18 - May 14: Every Other Week  \nMay 14 - October 31:   1 x Weekly      ","State Owned Dumpster",12,"N/A for this line",null,"34",{"$f":"SUM(J4*K4)","v":0},"Year Round","Container on Site","Year Round","Container on Site",0,"None","N/A for this line",{"$f":"L4","v":0}]
["2.","Finger Lake Campground","Mile 0.7 Bogard Rd, Wasilla","6 YD w/ Bear Lids (plastic lids w/metal frames & security bar)",1," 1 x Weekly",null,"6",{"$f":"SUM(G5*H5)","v":0},null,"24",0,"2023-05-07",null,"2023-10-15",null,null,"Memorial Day \nJuly 4th ",{"$f":"SUM(Q5*2)","v":0},{"$f":"SUM(I5+L5+N5+P5+S5)","v":0}]
["3.","Gold Mint Trailhead","Mile 14 Hatcher Pass Road, Wasilla","2YD w/ Bear Lids (plastic lids w/metal frames & security bar)",1,"1 x Weekly  ",null,"5",{"$f":"SUM(G6*H6)","v":0},null,"19",0,"2023-05-14",null,"2023-09-26",null,null,"Memorial Day \nJuly 4th ",{"$f":"SUM(Q6*2)","v":0},0]
["4.","Government Peak Campground","Mile 11 Hatcher Pass Road, Wasilla","2YD w/ Bear Lids (plastic lids w/metal frames & security bar)",1,"1 x Weekly",null,"5",{"$f":"SUM(G7*H7)","v":0},null,"19",0,"2023-05-14",null,"2023-09-26",null,null,"Memorial Day \nJuly 4th ",{"$f":"SUM(Q7*2)","v":0},0]
["5.","Nancy Lake Office Headquarters","Mile 1.3 Nancy Lake Pkwy, Willow","6 YD W/ metal lids",1,"May 18 - September 30: 1 x Weekly     \nOctober 1 - October 31: Every Other Week \nNovember 1 - April 17: 1 x Monthly \nApril 18 - May 17: Every Other Week","State Owned Dumpster","12","N/A for this line",null,"34",0,"Year Round","Container on Site","Year Round","Container on Site",0,"None","N/A for this line",{"$f":"L8","v":0}]
["6.","Nancy Lake Campground","Mile 66.5 Parks Hwy, Willow","6 YD w/ Bear Lids (plastic lids w/metal frames & security bar)",1,"May 7 - September 3: 1 x Weekly     \nSeptember 4 - October 16: Every Other Week ",null,"6",{"$f":"SUM(G9*H9)","v":0},null,"21",0,"2023-05-07",null,"2023-10-15",null,null,"Memorial Day \nJuly 4th ",{"$f":"SUM(Q9*2)","v":0},0]
["7.","South Rolly Campground #1","Mile 6.5 Nancy Lake Pkwy., Willow","6 YD w/ Bear Lids (plastic lids w/metal frames & security bar)",1,"May 7 - September 15: 1 x Weekly \nSeptember 16 - October 16: Every Other Week ",null,"6",0,null,"22",0,"2023-05-07",null,"2023-10-15",null,null,"Memorial Day \nJuly 4th ",0,0]
["8.","South Rolly Campground #2","Mile 6.5 Nancy Lake Pkwy., Willow","6 YD w/ Bear Lids (plastic lids w/metal frames & security bar)",1,"1 x Weekly",null,"6",0,null,"18",0,"2023-05-21",null,"2023-09-15",null,null,"Memorial Day \nJuly 4th ",0,0]
["9.","Willow Creek Campground #1","Mile 70.8 Parks Hwy, Willow","6 YD w/ Bear Lids (plastic lids w/metal frames & security bar)",1,"May 1 - September 1: 1 x Weekly  \nSeptember 2 - September 30: Every Other Week ",null,"5",0,null,"21",0,"2023-05-01",null,"2023-09-30",null,null,"Memorial Day \nJuly 4th ",0,0]
["10.","Matanuska Lakes SRA #1"," Mile 36.4 Glenn Hwy, Palmer","6 YD w/ Bear Lids (plastic lids w/metal frames & security bar)",1,"1 x Weekly",null,"6",0,null,"21",0,"2023-05-15",null,"2023-10-01",null,null,"Memorial Day \nJuly 4th ",0,0]
["11.","Matanuska Lakes SRA #2"," Mile 36.4 Glenn Hwy, Palmer","3 YD w/ Bear Lids (plastic lids w/metal frames & security bar)",1,"1 x Weekly",null,"6",0,null,"21",0,"2023-05-15",null,"2023-10-01",null,null,"Memorial Day \nJuly 4th ",0,0]
["TOTAL COST PER YEAR",null,null,null,null,null,null,null,null,null,null,null,null,null,null,null,null,null,null,{"$f":"SUM(T4:T14)","v":0}]
["Prices do not reflect the Fuel Surcharge, Disposal Surcharge and RCC Fee.  Each Fee to be billed as separate line items on invoice.         "]
["DETAILS FOR BID SCHEDULE "]
["A.","The \"Price Per Pick Up per Container\" column is the cost per pick up of that container. "]
["B.","The \"Monthly Rental Cost Per Container and Security Bar\" column is the cost per per month for the rental of the container and security bar. "]
["C.","The \"Approximate Date In\" and Approximated Date Out\" colums ar the approximate dates containters are to be delivered to and removed from the location shown. These dates may vary from year to year. Mat-Su Parks will notify the Contractor of the delivery in and out dates for subsequent contract years."]
["D.","The \"Containter Delivery Fee\" column is the cost for one time delivery of a container to the site for Year Round service for Seasonal service. Bidder is to enter the cost per service per containter in this column. So for Year Round service, the State would pay only one fee, for Seasonal delivery  the State would pay the fee offered when the container is delivered at the beginning of the season."]
["E.","The \"Containter Removal Fee\" column is the cost for one time removal of a container from the site for Year Round service for Seasonal service. Bidder is to enter the cost per service per containter in this column. So for Year Round service, the State would pay only one fee, for Seasonal removal the State would pay the fee offered when the container is removed at the end of the season."]
["F.","The \"Price Per Extra Pick Up\" column is the cost per service to provide an additional pick up on the date(s) shown in the \"Approximate Extra Pick Up Dates\" column. The \"Approximate Extra  Pick Up Dates\" may vary from year to year. The Contractor will be notified by Mat-Su Parkswhen a special service is required."]
["BIDDER INFORMATION"]
["Authorized Person's Printed Name:",null,null,null,null,null,null,"Authorized Person's Signature:\nWill Fill Automatically from Authorized Person's Name",null,null,{"$f":"IF(D25=\"\",\"\",D25)","v":""},null,null,null,null,"Date Signed:"]
["Preference Certification:",null,null,"Check the preference(s) your company qualifies for:",null,null,null,"Alaska Bidder:",null,null,"Alaska Veteran:",null,null,"Alaskan with Disabilities:",null,null,"Employment Program:"]
["Addendum Certification:",null,null,"I acknowledge receipt of the following addendum(s) issued for this ITB:"]

{"sheet":"Year 2","index":1,"n_rows":27,"n_cols":20,"rows_kept":27,"cut":false,"hidden":false,"merged":[[17,1,17,19],[0,0,0,19],[1,0,1,19],[14,0,14,18],[15,0,15,19],[16,0,16,19],[24,17,24,19],[18,1,18,19],[19,1,19,19],[20,1,20,19],[21,1,21,19],[22,1,22,19],[23,0,23,19],[24,0,24,2],[24,3,24,6],[24,7,24,9],[24,10,24,14],[24,15,24,16],[28,0,28,19],[25,0,25,2],[25,3,25,6],[25,7,25,8],[25,10,25,11],[25,13,25,14],[25,16,25,17],[26,0,26,2],[26,3,26,6],[26,7,26,8],[26,9,26,19],[27,0,27,19]]}
["ATTACHMENT 4\nBID SCHEDULE"]
["YEAR 2"]
["Item","Site","Location","Container Size","Qty","Scheduled Pick Up Frequency","Monthly Rental                                        Cost per Container and Security Bar (Note B)                                ","Nunber of Months Container Rented Per Year ","Total Yearly Rental Cost (Sum of Column G x H)","Price Per Pick Up                           per Container (Note A)","Estimated Number of Pick Ups Per Year","Total Yearly Cost for Pick Ups (Sum of Columns J x K)","Approximate Date In (Note C)","Container Delivery Fee (Note D)","Approximate Date Out (Note C)","Container Removal Fee (Note E)","Price Per Extra Pick Up\n(Cost Per Pick Up) (Note F)","Approximate Extra Pick Up Dates","Total Cost for 2 Extra Pick Ups per year (Sum Column Q x 2)","Total Cost per Year (Sum of Columns I +  L +  N +  P + S)"]
["1.","Finger Lake Office Headquarters","7278 E. Bogard Rd. Wasilla","4 YD",1,"November 1 - April 17:  Monthly    \nApril 18 - May 14: Every Other Week  \nMay 14 - October 31:   1 x Weekly      ","State Owned Dumpster",12,"N/A for this line",null,"34",{"$f":"SUM(J4*K4)","v":0},"Year Round","Container on Site","Year Round","Container on Site",0,"None","N/A for this line",{"$f":"L4","v":0}]
["2.","Finger Lake Campground","Mile 0.7 Bogard Rd, Wasilla","6 YD w/ Bear Lids (plastic lids w/metal frames & security bar)",1," 1 x Weekly",null,"6",{"$f":"SUM(G5*H5)","v":0},null,"24",0,"2023-05-07",null,"2023-10-15",null,null,"Memorial Day \nJuly 4th ",{"$f":"SUM(Q5*2)","v":0},{"$f":"SUM(I5+L5+N5+P5+S5)","v":0}]
["3.","Gold Mint Trailhead","Mile 14 Hatcher Pass Road, Wasilla","2YD w/ Bear Lids (plastic lids w/metal frames & security bar)",1,"1 x Weekly  ",null,"5",{"$f":"SUM(G6*H6)","v":0},null,"19",0,"2023-05-14",null,"2023-09-26",null,null,"Memorial Day \nJuly 4th ",{"$f":"SUM(Q6*2)","v":0},0]
["4.","Government Peak Campground","Mile 11 Hatcher Pass Road, Wasilla","2YD w/ Bear Lids (plastic lids w/metal frames & security bar)",1,"1 x Weekly",null,"5",{"$f":"SUM(G7*H7)","v":0},null,"19",0,"2023-05-14",null,"2023-09-26",null,null,"Memorial Day \nJuly 4th ",{"$f":"SUM(Q7*2)","v":0},0]
["5.","Nancy Lake Office Headquarters","Mile 1.3 Nancy Lake Pkwy, Willow","6 YD W/ metal lids",1,"May 18 - September 30: 1 x Weekly     \nOctober 1 - October 31: Every Other Week \nNovember 1 - April 17: 1 x Monthly \nApril 18 - May 17: Every Other Week","State Owned Dumpster","12","N/A for this line",null,"34",0,"Year Round","Container on Site","Year Round","Container on Site",0,"None","N/A for this line",{"$f":"L8","v":0}]
["6.","Nancy Lake Campground","Mile 66.5 Parks Hwy, Willow","6 YD w/ Bear Lids (plastic lids w/metal frames & security bar)",1,"May 7 - September 3: 1 x Weekly     \nSeptember 4 - October 16: Every Other Week ",null,"6",{"$f":"SUM(G9*H9)","v":0},null,"21",0,"2023-05-07",null,"2023-10-15",null,null,"Memorial Day \nJuly 4th ",{"$f":"SUM(Q9*2)","v":0},0]
["7.","South Rolly Campground #1","Mile 6.5 Nancy Lake Pkwy., Willow","6 YD w/ Bear Lids (plastic lids w/metal frames & security bar)",1,"May 7 - September 15: 1 x Weekly \nSeptember 16 - October 16: Every Other Week ",null,"6",0,null,"22",0,"2023-05-07",null,"2023-10-15",null,null,"Memorial Day \nJuly 4th ",0,0]
["8.","South Rolly Campground #2","Mile 6.5 Nancy Lake Pkwy., Willow","6 YD w/ Bear Lids (plastic lids w/metal frames & security bar)",1,"1 x Weekly",null,"6",0,null,"18",0,"2023-05-21",null,"2023-09-15",null,null,"Memorial Day \nJuly 4th ",0,0]
["9.","Willow Creek Campground #1","Mile 70.8 Parks Hwy, Willow","6 YD w/ Bear Lids (plastic lids w/metal frames & security bar)",1,"May 1 - September 1: 1 x Weekly  \nSeptember 2 - September 30: Every Other Week ",null,"5",0,null,"21",0,"2023-05-01",null,"2023-09-30",null,null,"Memorial Day \nJuly 4th ",0,0]
["10.","Matanuska Lakes SRA #1"," Mile 36.4 Glenn Hwy, Palmer","6 YD w/ Bear Lids (plastic lids w/metal frames & security bar)",1,"1 x Weekly",null,"6",0,null,"21",0,"2023-05-15",null,"2023-10-01",null,null,"Memorial Day \nJuly 4th ",0,0]
["11.","Matanuska Lakes SRA #2"," Mile 36.4 Glenn Hwy, Palmer","3 YD w/ Bear Lids (plastic lids w/metal frames & security bar)",1,"1 x Weekly",null,"6",0,null,"21",0,"2023-05-15",null,"2023-10-01",null,null,"Memorial Day \nJuly 4th ",0,0]
["TOTAL COST PER YEAR",null,null,null,null,null,null,null,null,null,null,null,null,null,null,null,null,null,null,{"$f":"SUM(T4:T14)","v":0}]
["Prices do not reflect the Fuel Surcharge, Disposal Surcharge and RCC Fee.  Each Fee to be billed as separate line items on invoice.         "]
["DETAILS FOR BID SCHEDULE "]
["A.","The \"Price Per Pick Up per Container\" column is the cost per pick up of that container. "]
["B.","The \"Monthly Rental Cost Per Container and Security Bar\" column is the cost per per month for the rental of the container and security bar. "]
["C.","The \"Approximate Date In\" and Approximated Date Out\" colums ar the approximate dates containters are to be delivered to and removed from the location shown. These dates may vary from year to year. Mat-Su Parks will notify the Contractor of the delivery in and out dates for subsequent contract years."]
["D.","The \"Containter Delivery Fee\" column is the cost for one time delivery of a container to the site for Year Round service for Seasonal service. Bidder is to enter the cost per service per containter in this column. So for Year Round service, the State would pay only one fee, for Seasonal delivery  the State would pay the fee offered when the container is delivered at the beginning of the season."]
["E.","The \"Containter Removal Fee\" column is the cost for one time removal of a container from the site for Year Round service for Seasonal service. Bidder is to enter the cost per service per containter in this column. So for Year Round service, the State would pay only one fee, for Seasonal removal the State would pay the fee offered when the container is removed at the end of the season."]
["F.","The \"Price Per Extra Pick Up\" column is the cost per service to provide an additional pick up on the date(s) shown in the \"Approximate Extra Pick Up Dates\" column. The \"Approximate Extra  Pick Up Dates\" may vary from year to year. The Contractor will be notified by Mat-Su Parkswhen a special service is required."]
["BIDDER INFORMATION"]
["Authorized Person's Printed Name:",null,null,{"$f":"IF('Year 1'!$D$25=\"\",\"\",'Year 1'!$D$25)","v":""},null,null,null,"Authorized Person's Signature:\nWill Fill Automatically from Authorized Person's Name",null,null,{"$f":"IF(D25=\"\",\"\",D25)","v":""},null,null,null,null,"Date Signed:",null,{"$f":"IF('Year 1'!$R$25=\"\",\"\",'Year 1'!$R$25)","v":""}]
["Preference Certification:",null,null,"Check the preference(s) your company qualifies for:",null,null,null,"Alaska Bidder:",null,{"$f":"IF('Year 1'!$J$26=\"\",\"\",'Year 1'!$J$26)","v":""},"Alaska Veteran:",null,{"$f":"IF('Year 1'!$M$26=\"\",\"\",'Year 1'!$M$26)","v":""},"Alaskan with Disabilities:",null,{"$f":"IF('Year 1'!$P$26=\"\",\"\",'Year 1'!$P$26)","v":""},"Employment Program:",null,{"$f":"IF('Year 1'!$S$26=\"\",\"\",'Year 1'!$S$26)","v":""}]
["Addendum Certification:",null,null,"I acknowledge receipt of the following addendum(s) issued for this ITB:",null,null,null,{"$f":"IF('Year 1'!$H$22=\"\",\"\",'Year 1'!$H$27)","v":""}]

{"sheet":"Year 3","index":2,"n_rows":27,"n_cols":20,"rows_kept":27,"cut":false,"hidden":false,"merged":[[17,1,17,19],[0,0,0,19],[1,0,1,19],[14,0,14,18],[15,0,15,19],[16,0,16,19],[24,17,24,19],[18,1,18,19],[19,1,19,19],[20,1,20,19],[21,1,21,19],[22,1,22,19],[23,0,23,19],[24,0,24,2],[24,3,24,6],[24,7,24,9],[24,10,24,14],[24,15,24,16],[28,0,28,19],[25,0,25,2],[25,3,25,6],[25,7,25,8],[25,10,25,11],[25,13,25,14],[25,16,25,17],[26,0,26,2],[26,3,26,6],[26,7,26,8],[26,9,26,19],[27,0,27,19]]}
["ATTACHMENT 4\nBID SCHEDULE"]
["YEAR 3"]
["Item","Site","Location","Container Size","Qty","Scheduled Pick Up Frequency","Monthly Rental                                        Cost per Container and Security Bar (Note B)                                ","Nunber of Months Container Rented Per Year ","Total Yearly Rental Cost (Sum of Column G x H)","Price Per Pick Up                           per Container (Note A)","Estimated Number of Pick Ups Per Year","Total Yearly Cost for Pick Ups (Sum of Columns J x K)","Approximate Date In (Note C)","Container Delivery Fee (Note D)","Approximate Date Out (Note C)","Container Removal Fee (Note E)","Price Per Extra Pick Up\n(Cost Per Pick Up) (Note F)","Approximate Extra Pick Up Dates","Total Cost for 2 Extra Pick Ups per year (Sum Column Q x 2)","Total Cost per Year (Sum of Columns I +  L +  N +  P + S)"]
["1.","Finger Lake Office Headquarters","7278 E. Bogard Rd. Wasilla","4 YD",1,"November 1 - April 17:  Monthly    \nApril 18 - May 14: Every Other Week  \nMay 14 - October 31:   1 x Weekly      ","State Owned Dumpster",12,"N/A for this line",null,"34",{"$f":"SUM(J4*K4)","v":0},"Year Round","Container on Site","Year Round","Container on Site",0,"None","N/A for this line",{"$f":"L4","v":0}]
["2.","Finger Lake Campground","Mile 0.7 Bogard Rd, Wasilla","6 YD w/ Bear Lids (plastic lids w/metal frames & security bar)",1," 1 x Weekly",null,"6",{"$f":"SUM(G5*H5)","v":0},null,"24",0,"2023-05-07",null,"2023-10-15",null,null,"Memorial Day \nJuly 4th ",{"$f":"SUM(Q5*2)","v":0},{"$f":"SUM(I5+L5+N5+P5+S5)","v":0}]
["3.","Gold Mint Trailhead","Mile 14 Hatcher Pass Road, Wasilla","2YD w/ Bear Lids (plastic lids w/metal frames & security bar)",1,"1 x Weekly  ",null,"5",{"$f":"SUM(G6*H6)","v":0},null,"19",0,"2023-05-14",null,"2023-09-26",null,null,"Memorial Day \nJuly 4th ",{"$f":"SUM(Q6*2)","v":0},0]
["4.","Government Peak Campground","Mile 11 Hatcher Pass Road, Wasilla","2YD w/ Bear Lids (plastic lids w/metal frames & security bar)",1,"1 x Weekly",null,"5",{"$f":"SUM(G7*H7)","v":0},null,"19",0,"2023-05-14",null,"2023-09-26",null,null,"Memorial Day \nJuly 4th ",{"$f":"SUM(Q7*2)","v":0},0]
["5.","Nancy Lake Office Headquarters","Mile 1.3 Nancy Lake Pkwy, Willow","6 YD W/ metal lids",1,"May 18 - September 30: 1 x Weekly     \nOctober 1 - October 31: Every Other Week \nNovember 1 - April 17: 1 x Monthly \nApril 18 - May 17: Every Other Week","State Owned Dumpster","12","N/A for this line",null,"34",0,"Year Round","Container on Site","Year Round","Container on Site",0,"None","N/A for this line",{"$f":"L8","v":0}]
["6.","Nancy Lake Campground","Mile 66.5 Parks Hwy, Willow","6 YD w/ Bear Lids (plastic lids w/metal frames & security bar)",1,"May 7 - September 3: 1 x Weekly     \nSeptember 4 - October 16: Every Other Week ",null,"6",{"$f":"SUM(G9*H9)","v":0},null,"21",0,"2023-05-07",null,"2023-10-15",null,null,"Memorial Day \nJuly 4th ",{"$f":"SUM(Q9*2)","v":0},0]
["7.","South Rolly Campground #1","Mile 6.5 Nancy Lake Pkwy., Willow","6 YD w/ Bear Lids (plastic lids w/metal frames & security bar)",1,"May 7 - September 15: 1 x Weekly \nSeptember 16 - October 16: Every Other Week ",null,"6",0,null,"22",0,"2023-05-07",null,"2023-10-15",null,null,"Memorial Day \nJuly 4th ",0,0]
["8.","South Rolly Campground #2","Mile 6.5 Nancy Lake Pkwy., Willow","6 YD w/ Bear Lids (plastic lids w/metal frames & security bar)",1,"1 x Weekly",null,"6",0,null,"18",0,"2023-05-21",null,"2023-09-15",null,null,"Memorial Day \nJuly 4th ",0,0]
["9.","Willow Creek Campground #1","Mile 70.8 Parks Hwy, Willow","6 YD w/ Bear Lids (plastic lids w/metal frames & security bar)",1,"May 1 - September 1: 1 x Weekly  \nSeptember 2 - September 30: Every Other Week ",null,"5",0,null,"21",0,"2023-05-01",null,"2023-09-30",null,null,"Memorial Day \nJuly 4th ",0,0]
["10.","Matanuska Lakes SRA #1"," Mile 36.4 Glenn Hwy, Palmer","6 YD w/ Bear Lids (plastic lids w/metal frames & security bar)",1,"1 x Weekly",null,"6",0,null,"21",0,"2023-05-15",null,"2023-10-01",null,null,"Memorial Day \nJuly 4th ",0,0]
["11.","Matanuska Lakes SRA #2"," Mile 36.4 Glenn Hwy, Palmer","3 YD w/ Bear Lids (plastic lids w/metal frames & security bar)",1,"1 x Weekly",null,"6",0,null,"21",0,"2023-05-15",null,"2023-10-01",null,null,"Memorial Day \nJuly 4th ",0,0]
["TOTAL COST PER YEAR",null,null,null,null,null,null,null,null,null,null,null,null,null,null,null,null,null,null,{"$f":"SUM(T4:T14)","v":0}]
["Prices do not reflect the Fuel Surcharge, Disposal Surcharge and RCC Fee.  Each Fee to be billed as separate line items on invoice.         "]
["DETAILS FOR BID SCHEDULE "]
["A.","The \"Price Per Pick Up per Container\" column is the cost per pick up of that container. "]
["B.","The \"Monthly Rental Cost Per Container and Security Bar\" column is the cost per per month for the rental of the container and security bar. "]
["C.","The \"Approximate Date In\" and Approximated Date Out\" colums ar the approximate dates containters are to be delivered to and removed from the location shown. These dates may vary from year to year. Mat-Su Parks will notify the Contractor of the delivery in and out dates for subsequent contract years."]
["D.","The \"Containter Delivery Fee\" column is the cost for one time delivery of a container to the site for Year Round service for Seasonal service. Bidder is to enter the cost per service per containter in this column. So for Year Round service, the State would pay only one fee, for Seasonal delivery  the State would pay the fee offered when the container is delivered at the beginning of the season."]
["E.","The \"Containter Removal Fee\" column is the cost for one time removal of a container from the site for Year Round service for Seasonal service. Bidder is to enter the cost per service per containter in this column. So for Year Round service, the State would pay only one fee, for Seasonal removal the State would pay the fee offered when the container is removed at the end of the season."]
["F.","The \"Price Per Extra Pick Up\" column is the cost per service to provide an additional pick up on the date(s) shown in the \"Approximate Extra Pick Up Dates\" column. The \"Approximate Extra  Pick Up Dates\" may vary from year to year. The Contractor will be notified by Mat-Su Parkswhen a special service is required."]
["BIDDER INFORMATION"]
["Authorized Person's Printed Name:",null,null,{"$f":"IF('Year 1'!$D$25=\"\",\"\",'Year 1'!$D$25)","v":""},null,null,null,"Authorized Person's Signature:\nWill Fill Automatically from Authorized Person's Name",null,null,{"$f":"IF(D25=\"\",\"\",D25)","v":""},null,null,null,null,"Date Signed:",null,{"$f":"IF('Year 1'!$R$25=\"\",\"\",'Year 1'!$R$25)","v":""}]
["Preference Certification:",null,null,"Check the preference(s) your company qualifies for:",null,null,null,"Alaska Bidder:",null,{"$f":"IF('Year 1'!$J$26=\"\",\"\",'Year 1'!$J$26)","v":""},"Alaska Veteran:",null,{"$f":"IF('Year 1'!$M$26=\"\",\"\",'Year 1'!$M$26)","v":""},"Alaskan with Disabilities:",null,{"$f":"IF('Year 1'!$P$26=\"\",\"\",'Year 1'!$P$26)","v":""},"Employment Program:",null,{"$f":"IF('Year 1'!$S$26=\"\",\"\",'Year 1'!$S$26)","v":""}]
["Addendum Certification:",null,null,"I acknowledge receipt of the following addendum(s) issued for this ITB:",null,null,null,{"$f":"IF('Year 1'!$H$22=\"\",\"\",'Year 1'!$H$27)","v":""}]

{"sheet":"Year 4","index":3,"n_rows":27,"n_cols":20,"rows_kept":27,"cut":false,"hidden":false,"merged":[[17,1,17,19],[0,0,0,19],[1,0,1,19],[14,0,14,18],[15,0,15,19],[16,0,16,19],[24,17,24,19],[18,1,18,19],[19,1,19,19],[20,1,20,19],[21,1,21,19],[22,1,22,19],[23,0,23,19],[24,0,24,2],[24,3,24,6],[24,7,24,9],[24,10,24,14],[24,15,24,16],[28,0,28,19],[25,0,25,2],[25,3,25,6],[25,7,25,8],[25,10,25,11],[25,13,25,14],[25,16,25,17],[26,0,26,2],[26,3,26,6],[26,7,26,8],[26,9,26,19],[27,0,27,19]]}
["ATTACHMENT 4\nBID SCHEDULE"]
["YEAR 4"]
["Item","Site","Location","Container Size","Qty","Scheduled Pick Up Frequency","Monthly Rental                                        Cost per Container and Security Bar (Note B)                                ","Nunber of Months Container Rented Per Year ","Total Yearly Rental Cost (Sum of Column G x H)","Price Per Pick Up                           per Container (Note A)","Estimated Number of Pick Ups Per Year","Total Yearly Cost for Pick Ups (Sum of Columns J x K)","Approximate Date In (Note C)","Container Delivery Fee (Note D)","Approximate Date Out (Note C)","Container Removal Fee (Note E)","Price Per Extra Pick Up\n(Cost Per Pick Up) (Note F)","Approximate Extra Pick Up Dates","Total Cost for 2 Extra Pick Ups per year (Sum Column Q x 2)","Total Cost per Year (Sum of Columns I +  L +  N +  P + S)"]
["1.","Finger Lake Office Headquarters","7278 E. Bogard Rd. Wasilla","4 YD",1,"November 1 - April 17:  Monthly    \nApril 18 - May 14: Every Other Week  \nMay 14 - October 31:   1 x Weekly      ","State Owned Dumpster",12,"N/A for this line",null,"34",{"$f":"SUM(J4*K4)","v":0},"Year Round","Container on Site","Year Round","Container on Site",0,"None","N/A for this line",{"$f":"L4","v":0}]
["2.","Finger Lake Campground","Mile 0.7 Bogard Rd, Wasilla","6 YD w/ Bear Lids (plastic lids w/metal frames & security bar)",1," 1 x Weekly",null,"6",{"$f":"SUM(G5*H5)","v":0},null,"24",0,"2023-05-07",null,"2023-10-15",null,null,"Memorial Day \nJuly 4th ",{"$f":"SUM(Q5*2)","v":0},{"$f":"SUM(I5+L5+N5+P5+S5)","v":0}]
["3.","Gold Mint Trailhead","Mile 14 Hatcher Pass Road, Wasilla","2YD w/ Bear Lids (plastic lids w/metal frames & security bar)",1,"1 x Weekly  ",null,"5",{"$f":"SUM(G6*H6)","v":0},null,"19",0,"2023-05-14",null,"2023-09-26",null,null,"Memorial Day \nJuly 4th ",{"$f":"SUM(Q6*2)","v":0},0]
["4.","Government Peak Campground","Mile 11 Hatcher Pass Road, Wasilla","2YD w/ Bear Lids (plastic lids w/metal frames & security bar)",1,"1 x Weekly",null,"5",{"$f":"SUM(G7*H7)","v":0},null,"19",0,"2023-05-14",null,"2023-09-26",null,null,"Memorial Day \nJuly 4th ",{"$f":"SUM(Q7*2)","v":0},0]
["5.","Nancy Lake Office Headquarters","Mile 1.3 Nancy Lake Pkwy, Willow","6 YD W/ metal lids",1,"May 18 - September 30: 1 x Weekly     \nOctober 1 - October 31: Every Other Week \nNovember 1 - April 17: 1 x Monthly \nApril 18 - May 17: Every Other Week","State Owned Dumpster","12","N/A for this line",null,"34",0,"Year Round","Container on Site","Year Round","Container on Site",0,"None","N/A for this line",{"$f":"L8","v":0}]
["6.","Nancy Lake Campground","Mile 66.5 Parks Hwy, Willow","6 YD w/ Bear Lids (plastic lids w/metal frames & security bar)",1,"May 7 - September 3: 1 x Weekly     \nSeptember 4 - October 16: Every Other Week ",null,"6",{"$f":"SUM(G9*H9)","v":0},null,"21",0,"2023-05-07",null,"2023-10-15",null,null,"Memorial Day \nJuly 4th ",{"$f":"SUM(Q9*2)","v":0},0]
["7.","South Rolly Campground #1","Mile 6.5 Nancy Lake Pkwy., Willow","6 YD w/ Bear Lids (plastic lids w/metal frames & security bar)",1,"May 7 - September 15: 1 x Weekly \nSeptember 16 - October 16: Every Other Week ",null,"6",0,null,"22",0,"2023-05-07",null,"2023-10-15",null,null,"Memorial Day \nJuly 4th ",0,0]
["8.","South Rolly Campground #2","Mile 6.5 Nancy Lake Pkwy., Willow","6 YD w/ Bear Lids (plastic lids w/metal frames & security bar)",1,"1 x Weekly",null,"6",0,null,"18",0,"2023-05-21",null,"2023-09-15",null,null,"Memorial Day \nJuly 4th ",0,0]
["9.","Willow Creek Campground #1","Mile 70.8 Parks Hwy, Willow","6 YD w/ Bear Lids (plastic lids w/metal frames & security bar)",1,"May 1 - September 1: 1 x Weekly  \nSeptember 2 - September 30: Every Other Week ",null,"5",0,null,"21",0,"2023-05-01",null,"2023-09-30",null,null,"Memorial Day \nJuly 4th ",0,0]
["10.","Matanuska Lakes SRA #1"," Mile 36.4 Glenn Hwy, Palmer","6 YD w/ Bear Lids (plastic lids w/metal frames & security bar)",1,"1 x Weekly",null,"6",0,null,"21",0,"2023-05-15",null,"2023-10-01",null,null,"Memorial Day \nJuly 4th ",0,0]
["11.","Matanuska Lakes SRA #2"," Mile 36.4 Glenn Hwy, Palmer","3 YD w/ Bear Lids (plastic lids w/metal frames & security bar)",1,"1 x Weekly",null,"6",0,null,"21",0,"2023-05-15",null,"2023-10-01",null,null,"Memorial Day \nJuly 4th ",0,0]
["TOTAL COST PER YEAR",null,null,null,null,null,null,null,null,null,null,null,null,null,null,null,null,null,null,{"$f":"SUM(T4:T14)","v":0}]
["Prices do not reflect the Fuel Surcharge, Disposal Surcharge and RCC Fee.  Each Fee to be billed as separate line items on invoice.         "]
["DETAILS FOR BID SCHEDULE "]
["A.","The \"Price Per Pick Up per Container\" column is the cost per pick up of that container. "]
["B.","The \"Monthly Rental Cost Per Container and Security Bar\" column is the cost per per month for the rental of the container and security bar. "]
["C.","The \"Approximate Date In\" and Approximated Date Out\" colums ar the approximate dates containters are to be delivered to and removed from the location shown. These dates may vary from year to year. Mat-Su Parks will notify the Contractor of the delivery in and out dates for subsequent contract years."]
["D.","The \"Containter Delivery Fee\" column is the cost for one time delivery of a container to the site for Year Round service for Seasonal service. Bidder is to enter the cost per service per containter in this column. So for Year Round service, the State would pay only one fee, for Seasonal delivery  the State would pay the fee offered when the container is delivered at the beginning of the season."]
["E.","The \"Containter Removal Fee\" column is the cost for one time removal of a container from the site for Year Round service for Seasonal service. Bidder is to enter the cost per service per containter in this column. So for Year Round service, the State would pay only one fee, for Seasonal removal the State would pay the fee offered when the container is removed at the end of the season."]
["F.","The \"Price Per Extra Pick Up\" column is the cost per service to provide an additional pick up on the date(s) shown in the \"Approximate Extra Pick Up Dates\" column. The \"Approximate Extra  Pick Up Dates\" may vary from year to year. The Contractor will be notified by Mat-Su Parkswhen a special service is required."]
["BIDDER INFORMATION"]
["Authorized Person's Printed Name:",null,null,{"$f":"IF('Year 1'!$D$25=\"\",\"\",'Year 1'!$D$25)","v":""},null,null,null,"Authorized Person's Signature:\nWill Fill Automatically from Authorized Person's Name",null,null,{"$f":"IF(D25=\"\",\"\",D25)","v":""},null,null,null,null,"Date Signed:",null,{"$f":"IF('Year 1'!$R$25=\"\",\"\",'Year 1'!$R$25)","v":""}]
["Preference Certification:",null,null,"Check the preference(s) your company qualifies for:",null,null,null,"Alaska Bidder:",null,{"$f":"IF('Year 1'!$J$26=\"\",\"\",'Year 1'!$J$26)","v":""},"Alaska Veteran:",null,{"$f":"IF('Year 1'!$M$26=\"\",\"\",'Year 1'!$M$26)","v":""},"Alaskan with Disabilities:",null,{"$f":"IF('Year 1'!$P$26=\"\",\"\",'Year 1'!$P$26)","v":""},"Employment Program:",null,{"$f":"IF('Year 1'!$S$26=\"\",\"\",'Year 1'!$S$26)","v":""}]
["Addendum Certification:",null,null,"I acknowledge receipt of the following addendum(s) issued for this ITB:",null,null,null,{"$f":"IF('Year 1'!$H$22=\"\",\"\",'Year 1'!$H$27)","v":""}]

{"sheet":"Year 5","index":4,"n_rows":27,"n_cols":20,"rows_kept":27,"cut":false,"hidden":false,"merged":[[17,1,17,19],[0,0,0,19],[1,0,1,19],[14,0,14,18],[15,0,15,19],[16,0,16,19],[24,17,24,19],[18,1,18,19],[19,1,19,19],[20,1,20,19],[21,1,21,19],[22,1,22,19],[23,0,23,19],[24,0,24,2],[24,3,24,6],[24,7,24,9],[24,10,24,14],[24,15,24,16],[28,0,28,19],[25,0,25,2],[25,3,25,6],[25,7,25,8],[25,10,25,11],[25,13,25,14],[25,16,25,17],[26,0,26,2],[26,3,26,6],[26,7,26,8],[26,9,26,19],[27,0,27,19]]}
["ATTACHMENT 4\nBID SCHEDULE"]
["YEAR 5"]
["Item","Site","Location","Container Size","Qty","Scheduled Pick Up Frequency","Monthly Rental                                        Cost per Container and Security Bar (Note B)                                ","Nunber of Months Container Rented Per Year ","Total Yearly Rental Cost (Sum of Column G x H)","Price Per Pick Up                           per Container (Note A)","Estimated Number of Pick Ups Per Year","Total Yearly Cost for Pick Ups (Sum of Columns J x K)","Approximate Date In (Note C)","Container Delivery Fee (Note D)","Approximate Date Out (Note C)","Container Removal Fee (Note E)","Price Per Extra Pick Up\n(Cost Per Pick Up) (Note F)","Approximate Extra Pick Up Dates","Total Cost for 2 Extra Pick Ups per year (Sum Column Q x 2)","Total Cost per Year (Sum of Columns I +  L +  N +  P + S)"]
["1.","Finger Lake Office Headquarters","7278 E. Bogard Rd. Wasilla","4 YD",1,"November 1 - April 17:  Monthly    \nApril 18 - May 14: Every Other Week  \nMay 14 - October 31:   1 x Weekly      ","State Owned Dumpster",12,"N/A for this line",null,"34",{"$f":"SUM(J4*K4)","v":0},"Year Round","Container on Site","Year Round","Container on Site",0,"None","N/A for this line",{"$f":"L4","v":0}]
["2.","Finger Lake Campground","Mile 0.7 Bogard Rd, Wasilla","6 YD w/ Bear Lids (plastic lids w/metal frames & security bar)",1," 1 x Weekly",null,"6",{"$f":"SUM(G5*H5)","v":0},null,"24",0,"2023-05-07",null,"2023-10-15",null,null,"Memorial Day \nJuly 4th ",{"$f":"SUM(Q5*2)","v":0},{"$f":"SUM(I5+L5+N5+P5+S5)","v":0}]
["3.","Gold Mint Trailhead","Mile 14 Hatcher Pass Road, Wasilla","2YD w/ Bear Lids (plastic lids w/metal frames & security bar)",1,"1 x Weekly  ",null,"5",{"$f":"SUM(G6*H6)","v":0},null,"19",0,"2023-05-14",null,"2023-09-26",null,null,"Memorial Day \nJuly 4th ",{"$f":"SUM(Q6*2)","v":0},0]
["4.","Government Peak Campground","Mile 11 Hatcher Pass Road, Wasilla","2YD w/ Bear Lids (plastic lids w/metal frames & security bar)",1,"1 x Weekly",null,"5",{"$f":"SUM(G7*H7)","v":0},null,"19",0,"2023-05-14",null,"2023-09-26",null,null,"Memorial Day \nJuly 4th ",{"$f":"SUM(Q7*2)","v":0},0]
["5.","Nancy Lake Office Headquarters","Mile 1.3 Nancy Lake Pkwy, Willow","6 YD W/ metal lids",1,"May 18 - September 30: 1 x Weekly     \nOctober 1 - October 31: Every Other Week \nNovember 1 - April 17: 1 x Monthly \nApril 18 - May 17: Every Other Week","State Owned Dumpster","12","N/A for this line",null,"34",0,"Year Round","Container on Site","Year Round","Container on Site",0,"None","N/A for this line",{"$f":"L8","v":0}]
["6.","Nancy Lake Campground","Mile 66.5 Parks Hwy, Willow","6 YD w/ Bear Lids (plastic lids w/metal frames & security bar)",1,"May 7 - September 3: 1 x Weekly     \nSeptember 4 - October 16: Every Other Week ",null,"6",{"$f":"SUM(G9*H9)","v":0},null,"21",0,"2023-05-07",null,"2023-10-15",null,null,"Memorial Day \nJuly 4th ",{"$f":"SUM(Q9*2)","v":0},0]
["7.","South Rolly Campground #1","Mile 6.5 Nancy Lake Pkwy., Willow","6 YD w/ Bear Lids (plastic lids w/metal frames & security bar)",1,"May 7 - September 15: 1 x Weekly \nSeptember 16 - October 16: Every Other Week ",null,"6",0,null,"22",0,"2023-05-07",null,"2023-10-15",null,null,"Memorial Day \nJuly 4th ",0,0]
["8.","South Rolly Campground #2","Mile 6.5 Nancy Lake Pkwy., Willow","6 YD w/ Bear Lids (plastic lids w/metal frames & security bar)",1,"1 x Weekly",null,"6",0,null,"18",0,"2023-05-21",null,"2023-09-15",null,null,"Memorial Day \nJuly 4th ",0,0]
["9.","Willow Creek Campground #1","Mile 70.8 Parks Hwy, Willow","6 YD w/ Bear Lids (plastic lids w/metal frames & security bar)",1,"May 1 - September 1: 1 x Weekly  \nSeptember 2 - September 30: Every Other Week ",null,"5",0,null,"21",0,"2023-05-01",null,"2023-09-30",null,null,"Memorial Day \nJuly 4th ",0,0]
["10.","Matanuska Lakes SRA #1"," Mile 36.4 Glenn Hwy, Palmer","6 YD w/ Bear Lids (plastic lids w/metal frames & security bar)",1,"1 x Weekly",null,"6",0,null,"21",0,"2023-05-15",null,"2023-10-01",null,null,"Memorial Day \nJuly 4th ",0,0]
["11.","Matanuska Lakes SRA #2"," Mile 36.4 Glenn Hwy, Palmer","3 YD w/ Bear Lids (plastic lids w/metal frames & security bar)",1,"1 x Weekly",null,"6",0,null,"21",0,"2023-05-15",null,"2023-10-01",null,null,"Memorial Day \nJuly 4th ",0,0]
["TOTAL COST PER YEAR",null,null,null,null,null,null,null,null,null,null,null,null,null,null,null,null,null,null,{"$f":"SUM(T4:T14)","v":0}]
["Prices do not reflect the Fuel Surcharge, Disposal Surcharge and RCC Fee.  Each Fee to be billed as separate line items on invoice.         "]
["DETAILS FOR BID SCHEDULE "]
["A.","The \"Price Per Pick Up per Container\" column is the cost per pick up of that container. "]
["B.","The \"Monthly Rental Cost Per Container and Security Bar\" column is the cost per per month for the rental of the container and security bar. "]
["C.","The \"Approximate Date In\" and Approximated Date Out\" colums ar the approximate dates containters are to be delivered to and removed from the location shown. These dates may vary from year to year. Mat-Su Parks will notify the Contractor of the delivery in and out dates for subsequent contract years."]
["D.","The \"Containter Delivery Fee\" column is the cost for one time delivery of a container to the site for Year Round service for Seasonal service. Bidder is to enter the cost per service per containter in this column. So for Year Round service, the State would pay only one fee, for Seasonal delivery  the State would pay the fee offered when the container is delivered at the beginning of the season."]
["E.","The \"Containter Removal Fee\" column is the cost for one time removal of a container from the site for Year Round service for Seasonal service. Bidder is to enter the cost per service per containter in this column. So for Year Round service, the State would pay only one fee, for Seasonal removal the State would pay the fee offered when the container is removed at the end of the season."]
["F.","The \"Price Per Extra Pick Up\" column is the cost per service to provide an additional pick up on the date(s) shown in the \"Approximate Extra Pick Up Dates\" column. The \"Approximate Extra  Pick Up Dates\" may vary from year to year. The Contractor will be notified by Mat-Su Parkswhen a special service is required."]
["BIDDER INFORMATION"]
["Authorized Person's Printed Name:",null,null,{"$f":"IF('Year 1'!$D$25=\"\",\"\",'Year 1'!$D$25)","v":""},null,null,null,"Authorized Person's Signature:\nWill Fill Automatically from Authorized Person's Name",null,null,{"$f":"IF(D25=\"\",\"\",D25)","v":""},null,null,null,null,"Date Signed:",null,{"$f":"IF('Year 1'!$R$25=\"\",\"\",'Year 1'!$R$25)","v":""}]
["Preference Certification:",null,null,"Check the preference(s) your company qualifies for:",null,null,null,"Alaska Bidder:",null,{"$f":"IF('Year 1'!$J$26=\"\",\"\",'Year 1'!$J$26)","v":""},"Alaska Veteran:",null,{"$f":"IF('Year 1'!$M$26=\"\",\"\",'Year 1'!$M$26)","v":""},"Alaskan with Disabilities:",null,{"$f":"IF('Year 1'!$P$26=\"\",\"\",'Year 1'!$P$26)","v":""},"Employment Program:",null,{"$f":"IF('Year 1'!$S$26=\"\",\"\",'Year 1'!$S$26)","v":""}]
["Addendum Certification:",null,null,"I acknowledge receipt of the following addendum(s) issued for this ITB:",null,null,null,{"$f":"IF('Year 1'!$H$22=\"\",\"\",'Year 1'!$H$27)","v":""}]

{"sheet":"5 Year Total","index":5,"n_rows":14,"n_cols":20,"rows_kept":14,"cut":false,"hidden":false,"merged":[[11,17,11,19],[10,0,10,19],[11,0,11,2],[11,3,11,6],[11,7,11,9],[11,10,11,14],[11,15,11,16],[14,0,14,19],[15,0,15,19],[12,0,12,2],[12,3,12,6],[12,7,12,8],[12,10,12,11],[12,13,12,14],[12,16,12,17],[13,0,13,2],[13,3,13,6],[13,7,13,8],[13,9,13,19],[0,0,0,19],[1,0,1,19],[8,0,8,18],[9,0,9,19],[2,1,2,19],[3,1,3,18],[4,1,4,18],[5,1,5,18],[6,1,6,18],[7,1,7,18]]}
["ATTACHMENT 4\nBID SCHEDULE"]
["5 YEAR TOTAL"]
["Item","Total Cost per Years 1, 2, 3, 4, and 5 (Sum of Year 1 + Year 2 +  Year 3 +  Year 4 + Year 5)"]
["1.","Year 1 Total",null,null,null,null,null,null,null,null,null,null,null,null,null,null,null,null,null,{"$f":"'Year 1'!T15","v":0}]
["2.","Year 2 Total",null,null,null,null,null,null,null,null,null,null,null,null,null,null,null,null,null,{"$f":"'Year 2'!T15","v":0}]
["3.","Year 3 Total",null,null,null,null,null,null,null,null,null,null,null,null,null,null,null,null,null,{"$f":"'Year 3'!T15","v":0}]
["4.","Year 4 Total",null,null,null,null,null,null,null,null,null,null,null,null,null,null,null,null,null,{"$f":"'Year 4'!T15","v":0}]
["5.","Year 5Total",null,null,null,null,null,null,null,null,null,null,null,null,null,null,null,null,null,{"$f":"'Year 5'!T15","v":0}]
["TOTAL COST FOR ALL YEARS",null,null,null,null,null,null,null,null,null,null,null,null,null,null,null,null,null,null,{"$f":"SUM(T4:T8)","v":0}]
["Prices do not reflect the Fuel Surcharge, Disposal Surcharge and RCC Fee.  Each Fee to be billed as separate line items on invoice.         "]
["BIDDER INFORMATION"]
["Authorized Person's Printed Name:",null,null,{"$f":"IF('Year 1'!$D$25=\"\",\"\",'Year 1'!$D$25)","v":""},null,null,null,"Authorized Person's Signature:\nWill Fill Automatically from Authorized Person's Name",null,null,{"$f":"IF(D12=\"\",\"\",D12)","v":""},null,null,null,null,"Date Signed:",null,{"$f":"IF('Year 1'!$R$25=\"\",\"\",'Year 1'!$R$25)","v":""}]
["Preference Certification:",null,null,"Check the preference(s) your company qualifies for:",null,null,null,"Alaska Bidder:",null,{"$f":"IF('Year 1'!$J$26=\"\",\"\",'Year 1'!$J$26)","v":""},"Alaska Veteran:",null,{"$f":"IF('Year 1'!$M$26=\"\",\"\",'Year 1'!$M$26)","v":""},"Alaskan with Disabilities:",null,{"$f":"IF('Year 1'!$P$26=\"\",\"\",'Year 1'!$P$26)","v":""},"Employment Program:",null,{"$f":"IF('Year 1'!$S$26=\"\",\"\",'Year 1'!$S$26)","v":""}]
["Addendum Certification:",null,null,"I acknowledge receipt of the following addendum(s) issued for this ITB:",null,null,null,{"$f":"IF('Year 1'!$H$22=\"\",\"\",'Year 1'!$H$27)","v":""}]